Cogmind - Beta 14 @@@ ROGUE MODE // 2024.08.17 @ 20:18:41 Player: Falseshadow Result: Destroyed by Lightning with EMDS Performance ------------- Evolutions (4) 2000 Regions Visited (12) 2400 Robots Destroyed (132) 660 Value Destroyed (5341) 5341 Prototype IDs (39) 780 Alien Tech Used (0) 0 Bonus (4543) 4543 TOTAL SCORE: 15724 Bonus ------- High Alert Combat Kills 968 Follower Combat Kills 1749 Entered DSFs 500 Network Hubs Disabled 400 Aligned with FarCom 300 Built Enhanced Grunts 300 A7 Reached Mainframe 300 Met R17 at Cetus 500 Friendly Fire -474 Cogmind --------- Core Integrity 0/850 Matter 202/300 Energy 15/100 System Corruption 23% Temperature Cool (0) Movement Walking (190) Ox1 Location -6/Hub_04(d) Parts ------- > --- POWER (1) -------- (None) > --- PROPULSION (7) --- Carbon-fiber Leg Flexi-carbon Leg > --- UTILITY (4) ------ Large Storage Unit Improved Targeting Computer Improved Hacking Suite > --- WEAPON (3) ------- Advanced Variable Charge Gun Gauss Rifle Antimatter Cannon > --- INVENTORY (15) --- Power Amplifier Advanced Heat Sink Improved Salvage Targeting Computer Transmission Jammer Improved Medium Armor Plating Centrium Medium Armor Plating Focal Shield Thermal Shield Neutron Cannon Gauss Rifle Peak State ------------ > --- POWER ------------ Light Angular Momentum Engine > --- PROPULSION ------- Flexi-carbon Leg Flexi-carbon Leg Flexi-carbon Leg Flexi-carbon Leg Enhanced Flexi-carbon Leg Enhanced Flexi-carbon Leg Enhanced Flexi-carbon Leg > --- UTILITY ---------- Large Storage Unit Centrium Medium Armor Plating Graphene Brace Improved Hacking Suite > --- WEAPON ----------- Advanced Variable Charge Gun Neutron Cannon Advanced KE Penetrator > --- INVENTORY -------- Medium Treads Flexi-carbon Leg Transmission Jammer Improved Medium Armor Plating Improved Medium Armor Plating Centrium Medium Armor Plating Centrium Medium Armor Plating Centrium Medium Armor Plating Focal Shield Thermal Shield Advanced Variable Charge Gun Neutron Cannon Magnetic Acceleration Cannon Antimatter Cannon [Rating: 99] Favorites ----------- Power Ion Engine Engine Ion Engine Power Core Fission Core Reactor Quantum Reactor Propulsion Flexi-carbon Leg Treads Light Treads Leg Flexi-carbon Leg Hover Unit Combat Airjet Utility Large Storage Unit Device Improved Heat Sink Storage Large Storage Unit Processor Improved Targeting Computer Hackware Hacking Suite Protection Centrium Medium Armor Plating Weapon Advanced KE Penetrator Energy Gun Advanced Variable Charge Gun Energy Cannon Neutron Cannon Ballistic Gun Advanced KE Penetrator Ballistic Cannon AWS/Autocannon Launcher Rocket Launcher Slashing Weapon Segregator Build | -11 -10 -10 -10 -9 -8 -7 -7 -6 -6 -6 -6 -6 ------- Run | Yrd Mat Min Exi Min Mat Fac DSF Fac Ext Cet Arc Hub Slots Evolved 8 | . . . . . 4 2 . 2 . . . . Power . | . . . . . . . . . . . . . Propulsion 5 | . . . . . 1 2 . 2 . . . . Utility 2 | . . . . . 2 . . . . . . . Weapon 1 | . . . . . 1 . . . . . . . Parts Attached 149 | 6 9 2 . 4 8 7 4 5 27 17 5 55 Power 18 | 1 2 . . . 1 . 1 1 2 1 . 9 Engine 11 | 1 2 . . . 1 . 1 . 2 . . 4 Core 4 | . . . . . . . . 1 . . . 3 Reactor 3 | . . . . . . . . . . 1 . 2 Propulsion 55 | 2 6 . . 1 2 7 2 3 9 6 1 16 Treads 7 | 2 3 . . 1 . . . . . . . 1 Leg 31 | . 3 . . . . . . . 8 4 1 15 Wheel . | . . . . . . . . . . . . . Hover 17 | . . . . . 2 7 2 3 1 2 . . Flight . | . . . . . . . . . . . . . Utility 30 | 1 1 1 . . 4 . 1 1 6 2 1 12 Device 12 | . . 1 . . . . . 1 3 1 1 5 Storage 3 | 1 1 . . . . . . . . . . 1 Processor 1 | . . . . . . . . . . . . 1 Hackware 3 | . . . . . 1 . . . 1 . . 1 Protection 11 | . . . . . 3 . 1 . 2 1 . 4 Artifact . | . . . . . . . . . . . . . Weapon 46 | 2 . 1 . 3 1 . . . 10 8 3 18 Energy Gun 4 | . . . . . . . . . . 2 . 2 Energy Cannon 8 | . . . . . . . . . 1 1 1 5 Ballistic Gun 15 | 2 . . . 2 . . . . 3 2 2 4 Ballistic Cannon 8 | . . . . . 1 . . . 2 1 . 4 Launcher 8 | . . 1 . 1 . . . . 2 1 . 3 Special Weapon . | . . . . . . . . . . . . . Impact Weapon . | . . . . . . . . . . . . . Slashing Weapon 3 | . . . . . . . . . 2 1 . . Piercing Weapon . | . . . . . . . . . . . . . Special Melee Weapon . | . . . . . . . . . . . . . Unidentified Prototypes 10 | . . . . . . . . . . 4 2 4 Corrupted Parts 2 | . . . . . . . . . 1 1 . . System Corruption 4 | . . . . . . . . . 3 1 . . Parts Lost 49 | . . . . . 1 . . 1 5 5 . 37 Power 7 | . . . . . . . . . 1 . . 6 Propulsion 23 | . . . . . . . . 1 2 4 . 16 Utility 11 | . . . . . 1 . . . 2 . . 8 Weapon 8 | . . . . . . . . . . 1 . 7 Highest Loss Streak 10 | . . . . . 1 . . 1 2 3 . 10 To Critical Strikes 1 | . . . . . . . . . . 1 . . Average Slot Usage (%) 89 | . 84 95 100 100 76 84 84 85 95 91 94 89 Engine 5 | . 13 14 14 14 9 7 7 . 4 . . 1 Core 1 | . . . . . . . . 5 1 . . 3 Treads 8 | . 24 28 28 28 18 . . . . . . . Leg 16 | . 3 . . . . . . . 18 28 41 37 Hover 9 | . . . . . 4 38 38 45 26 9 . . Device 7 | . . 9 14 14 9 7 7 6 6 13 13 5 Storage 8 | . 14 14 14 14 9 7 7 6 6 6 6 6 Hackware 4 | . . . . . 8 7 7 6 7 . . 5 Protection 4 | . . . . . 9 7 7 6 4 6 6 6 Energy Gun 1 | . . . . . . . . . . 5 . 3 Energy Cannon 1 | . . . . . . . . . . 7 . 3 Ballistic Gun 7 | . 28 18 14 16 . . . . 3 2 12 5 Ballistic Cannon 3 | . . . . . 9 7 7 6 6 . . 4 Launcher 2 | . . 9 14 11 . . . . 1 . . . Slashing Weapon 1 | . . . . . . . . . 3 2 6 . Peak Build Rating 99 | 6 6 11 14 16 49 62 71 80 80 94 98 99 Average Rating 56 | 3 5 9 12 14 46 61 67 78 64 74 90 83 On Entrance 43 | . 6 6 11 14 16 49 62 71 79 63 88 98 Naked Turns . | . . . . . . . . . . . . . Heaviest Build 95 | 11 28 32 32 33 92 89 95 95 95 66 65 65 Greatest Support 164 | 40 40 40 40 40 40 50 52 68 126 123 151 164 Greatest Overweight (x) 13 | 2 1 . . . 12 1 1 1 2 1 . 13 Average Overweight (x) . | . . . . . 3 1 1 1 . . . . Largest Inventory Capacity 15 | 8 15 15 15 15 15 15 15 15 15 15 15 15 Average Capacity 14 | 6 12 15 15 15 15 15 15 15 15 15 15 15 Most Carried 15 | 6 8 14 15 15 15 13 15 15 15 15 15 15 Average Carried 13 | 3 4 11 14 13 12 11 13 14 14 14 15 14 Final Capacity 15 | 8 15 15 15 15 15 15 15 15 15 15 15 15 Final Carried 15 | 4 8 14 15 12 14 11 15 14 14 15 15 10 Class Distribution -------------------- 27% | Scavenger-Tank 26% | Mutant 14% | Scavenger-Mutant 14% | Skirmisher 13% | Scavenger-Skirmisher 3% | Commander-Mutant Dominant Class ---------------- Mutant | -10/Materials Mutant | -10/Mines Mutant | -10/Exiles Mutant | -9/Mines Skirmisher | -8/Materials Scavenger-Skirmisher | -7/Factory Scavenger-Skirmisher | -7/DSF Scavenger-Skirmisher | -6/Factory Scavenger-Mutant | -6/Extension Scavenger-Tank | -6/Cetus Scavenger-Mutant | -6/Archives Scavenger-Tank | -6/Hub_04(d) Resources | -11 -10 -10 -10 -9 -8 -7 -7 -6 -6 -6 -6 -6 ----------- Run | Yrd Mat Min Exi Min Mat Fac DSF Fac Ext Cet Arc Hub Matter Collected 3633 | 181 213 97 . 142 80 . 73 34 850 295 178 1490 Remotely . | . . . . . . . . . . . . . Salvage Created 4719 | . 265 85 . 147 506 . 308 530 930 81 255 1612 Parts 260 | . 21 7 . 7 35 . 10 28 47 7 12 86 Haulers Intercepted 4 | . . . . . 1 . . . . . . 3 Recyclers Shooed 1 | . . . . . . . . . 1 . . . Parts Field Recycled . | . . . . . . . . . . . . . Retrieved Matter . | . . . . . . . . . . . . . Parts Self-Destructed . | . . . . . . . . . . . . . Prevented . | . . . . . . . . . . . . . Kills | -11 -10 -10 -10 -9 -8 -7 -7 -6 -6 -6 -6 -6 ------- Run | Yrd Mat Min Exi Min Mat Fac DSF Fac Ext Cet Arc Hub Combat Hostiles Destroyed 95 | . 4 2 . 9 13 . 8 11 17 1 1 29 Melee 1 | . . . . . . . . . 1 . . . Guns 31 | . 4 2 . 4 . . . . 5 1 1 14 Cannons 51 | . . . . . 13 . 8 10 6 . . 14 AOE 11 | . . . . 5 . . . . 5 . . 1 Classes Destroyed 17 | . 4 . . 1 5 . 2 2 2 . . 1 Worker 4 | . 1 . . . . . . . . . . 3 Builder 6 | . 1 . . . 1 . . . 2 . . 2 Hauler 4 | . . . . . 1 . . . . . . 3 Recycler 4 | . . . . . 1 . . 1 2 . . . Operator 7 | . . . . . . . . 1 2 . 2 2 Watcher 15 | . 2 . . . 5 . . 3 2 1 . 2 Swarmer 18 | . . . . . 4 . . 4 5 . . 5 Grunt 32 | . 4 2 . 5 6 . 2 2 5 . . 6 Brawler 1 | . . . . . . . . . 1 . . . Duelist 2 | . . . . . 1 . . . 1 . . . Sentry 13 | . . . . . . . . 1 4 . 1 7 Specialist 4 | . . . . . . . 4 . . . . . Hunter 14 | . . . . . 2 . 1 4 . . . 7 Programmer 3 | . . . . . . . . . 1 . . 2 Heavy 2 | . . . . . . . 1 . . . . 1 Behemoth 1 | . . . . . . . . . . . . 1 Cetus Guard 1 | . . . . . . . . . . 1 . . Enhanced Grunt 1 | . . . . . . . . . . . 1 . Assembled 4 | . . . . 4 . . . . . . . . Best Kill Streak 6 | . 5 2 . 3 6 . 4 5 5 1 2 6 Combat Bots Only 5 | . 3 2 . 3 4 . 4 4 4 1 1 5 Max Kills in Single Turn 3 | . 2 1 . 2 1 . 1 1 3 1 1 2 Gunslinging 1 | . 1 . . . . . . . . . . . Exploded 2 | . . . . 2 . . . . 2 . . 1 Melee 1 | . . . . . . . . . 1 . . . Uniques/NPCs Destroyed . | . . . . . . . . . . . . . Combat | -11 -10 -10 -10 -9 -8 -7 -7 -6 -6 -6 -6 -6 -------- Run | Yrd Mat Min Exi Min Mat Fac DSF Fac Ext Cet Arc Hub Hostile Shots Fired 1023 | . 34 16 . 10 39 . 36 63 287 30 4 504 Missed 318 | . 10 6 . 3 14 . 19 24 88 7 2 145 Damage Taken 10707 | . 265 144 . 91 300 . 288 457 2015 327 45 6775 Core 1094 | . 75 31 . 42 27 . 30 60 189 43 25 572 Absorbed by Shields 361 | . . . . . . . . . 209 152 . . Ignored by Resistances 318 | . . . . . . . . . 167 130 5 16 Core Remaining (%) 82 | 100 . . . 40 95 . 95 . . . . . Volleys Fired 252 | . 25 6 . 12 . . . . 48 15 15 131 Largest 3 | . 2 2 . 2 . . . . 3 3 2 3 Hottest 250 | . 40 40 . 56 . . . . 176 250 115 210 Shots Fired 697 | . 50 12 . 22 44 . 22 33 117 27 28 342 Gun 372 | . 50 12 . 16 . . . . 39 10 28 217 Cannon 305 | . . . . . 44 . 22 33 70 15 . 121 Launcher 20 | . . . . 6 . . . . 8 2 . 4 Special . | . . . . . . . . . . . . . Kinetic 552 | . 50 12 . 16 44 . 22 33 107 12 27 229 Thermal 125 | . . . . . . . . . 2 13 1 109 Explosive 20 | . . . . 6 . . . . 8 2 . 4 Electromagnetic . | . . . . . . . . . . . . . Robot Hit Streak 15 | . 12 6 . 8 9 . 11 15 8 13 5 13 Robot Miss Streak 15 | . 15 1 . 2 3 . 1 3 4 2 2 8 Penetration Max 1 | . . . . . . . . . 1 1 1 1 Secondary Targets 3 | . 1 . . . . . . . . . . 2 Max Gunslinging Chain 1 | . 1 . . . . . . . . . . 1 Autonomous 111 | . . . . . 44 . 22 33 12 . . . Shots Hit Robots 426 | . 25 9 . 13 32 . 20 26 75 19 15 192 Core Hits 202 | . 12 5 . 13 14 . 7 12 44 12 7 76 Critical Kills 5 | . . . . . . . . . . 1 3 1 Critical Parts Destroyed 17 | . . . . . . . . . 1 2 1 13 Critical Strikes 49 | . . . . . 6 . 3 5 6 3 4 22 Destroy 25 | . . . . . . . . . 1 3 4 17 Blast 23 | . . . . . 6 . 3 5 4 . . 5 Sever 1 | . . . . . . . . . 1 . . . Melee Attacks 13 | . . . . . . . . . 13 . . . Impact . | . . . . . . . . . . . . . Slashing 13 | . . . . . . . . . 13 . . . Piercing . | . . . . . . . . . . . . . Sneak Attacks 2 | . . . . . . . . . 2 . . . Combat Hostiles . | . . . . . . . . . . . . . Follow-up Attacks . | . . . . . . . . . . . . . Damage Inflicted 19276 | . 281 95 . 498 2757 . 1646 2180 3372 865 515 7067 Guns 5315 | . 280 95 . 113 . . . . 409 294 515 3609 Cannons 10819 | . . . . . 2745 . 1646 2063 1602 302 . 2461 Explosions 2745 | . . . . 385 . . . 117 1037 269 . 937 Melee 319 | . . . . . . . . . 319 . . . Ramming 78 | . 1 . . . 12 . . . 5 . . 60 Kinetic 14083 | . 280 95 . 113 2745 . 1646 2063 1979 322 515 4325 Thermal 2334 | . . . . 129 . . . 117 32 274 . 1782 Explosive 2237 | . . . . 256 . . . . 1037 269 . 675 Electromagnetic 225 | . . . . . . . . . . . . 225 Impact . | . . . . . . . . . . . . . Slashing 319 | . . . . . . . . . 319 . . . Piercing . | . . . . . . . . . . . . . Highest Corruption 22 | . . . . . . . . . 3 4 4 22 Average Corruption 4 | . . . . . . . . . 3 3 4 4 Corruption Purged . | . . . . . . . . . . . . . Corruption Blocked . | . . . . . . . . . . . . . Effects 51 | . . . . . . . . . 7 2 5 37 Message Errors 14 | . . . . . . . . . 2 . 1 11 Matter Fused 10 | . . . . . . . . . 2 1 1 6 Heat Flow Errors 2 | . . . . . . . . . . . 1 1 Energy Discharges 5 | . . . . . . . . . . 1 1 3 Parts Rejected 2 | . . . . . . . . . . . . 2 Parts Fused 1 | . . . . . . . . . . . . 1 Data Loss (minor) 5 | . . . . . . . . . 1 . 1 3 Data Loss (major) 5 | . . . . . . . . . 1 . . 4 Misfires 2 | . . . . . . . . . . . . 2 Alerts 2 | . . . . . . . . . 1 . . 1 Weapon Failures 3 | . . . . . . . . . . . . 3 Overload Shots . | . . . . . . . . . . . . . Overflow Damage 1342 | . . . . . 579 . 99 372 153 . . 139 Projectiles 1234 | . . . . . 579 . 99 343 89 . . 124 Explosions 58 | . . . . . . . . 29 14 . . 15 Melee 50 | . . . . . . . . . 50 . . . Knockbacks 46 | . . . . . 10 . 7 6 10 . . 13 Impact 2 | . . . . . 1 . . . . . . 1 Kinetic 38 | . . . . . 9 . 6 5 8 . . 10 Secondary 6 | . . . . . . . 1 1 2 . . 2 Self-Inflicted Damage 176 | . . . . . . . . . 2 . . 174 Shots 3 | . . . . . . . . . . . . 3 Rammed 5 | . 1 . . . 2 . . . 2 . . . Targets Rammed 11 | . 1 . . . 2 . . . 2 . . 6 Kicked 6 | . . . . . . . . . . . . 6 Crushed . | . . . . . . . . . . . . . Highest Temperature 799 | . 22 18 . . . . 522 7 799 399 97 498 Average Temperature 124 | . 11 11 . . . . 179 7 143 202 53 111 Received Heat Transfer 1948 | . 144 81 . 30 126 . 9 48 769 . 9 732 Effects 18 | . . . . . . . . . 11 . . 7 Shutdowns 4 | . . . . . . . . . 1 . . 3 Energy Bleed 3 | . . . . . . . . . 2 . . 1 Interference 2 | . . . . . . . . . 2 . . . Matter Decay 2 | . . . . . . . . . 1 . . 1 Short Circuit 6 | . . . . . . . . . 5 . . 1 Damage (minor) 1 | . . . . . . . . . . . . 1 Siege Activations . | . . . . . . . . . . . . . Robots Corrupted 1 | . . . . . . . . 1 . . . . Combat Hostiles 1 | . . . . . . . . 1 . . . . Parts Fried . | . . . . . . . . . . . . . Impact Corruptions 2 | . . . . . . . . 2 . . . . Robots Melted . | . . . . . . . . . . . . . Combat Hostiles . | . . . . . . . . . . . . . Parts Melted 1 | . . . . . . . . . 1 . . . Heat Transferred 1854 | . . . . 150 . . . 100 37 371 . 1196 Parts Sabotaged . | . . . . . . . . . . . . . Parts Stolen . | . . . . . . . . . . . . . Parts Stripped . | . . . . . . . . . . . . . Power Chain Reactions 2 | . . . . . . . . . . . . 2 Alert | -11 -10 -10 -10 -9 -8 -7 -7 -6 -6 -6 -6 -6 ------- Run | Yrd Mat Min Exi Min Mat Fac DSF Fac Ext Cet Arc Hub Peak Influence 1160 | . 129 114 . 321 348 178 321 639 1045 795 483 1160 Initial 584 | . . 49 . . 46 158 124 168 312 584 238 168 Average 471 | . 42 109 . 280 169 163 256 398 709 700 445 724 Maximum Alert Level 4 | . . . . 1 1 . 1 2 3 3 2 4 Low Security (%) 25 | 100 100 100 . 14 57 100 21 7 . . . . Level 1 20 | . . . . 85 42 . 78 41 14 . 15 3 Level 2 28 | . . . . . . . . 50 32 75 84 42 Level 3 24 | . . . . . . . . . 53 24 . 50 Level 4 . | . . . . . . . . . . . . 2 Level 5 . | . . . . . . . . . . . . . High Security . | . . . . . . . . . . . . . Max Security . | . . . . . . . . . . . . . Sterilizations 1 | . . . . . . . 1 . . . . . Squads Dispatched 29 | . 3 . . . . . 2 3 5 . . 16 Investigation 3 | . 2 . . . . . . . 1 . . . Extermination 3 | . . . . . . . . . . . . 3 Reinforcement 15 | . 1 . . . . . 2 2 2 . . 8 Assault 3 | . . . . . . . . 1 2 . . . Garrison 5 | . . . . . . . . . . . . 5 Intercept . | . . . . . . . . . . . . . Searches Triggered . | . . . . . . . . . . . . . Construction Impeded 3 | . . . . . . . . . . . . 3 Haulers Reinforced 3 | . . . . . . . . 1 . . . 2 Active Scanning Responses . | . . . . . . . . . . . . . Cargo Convoy Interrupts . | . . . . . . . . . . . . . Stealth | -11 -10 -10 -10 -9 -8 -7 -7 -6 -6 -6 -6 -6 --------- Run | Yrd Mat Min Exi Min Mat Fac DSF Fac Ext Cet Arc Hub Distress Signals 12 | . 1 . . . 1 . . 3 2 2 . 3 Communications Jammed 12 | . . . . . . . . . 12 . . . Distress Signals 12 | . . . . . . . . . 12 . . . Times Spotted 202 | . 14 2 . 6 24 . 8 16 42 9 12 69 Peak Tracking Total 9 | . 4 2 . 3 5 . 2 4 9 5 1 7 Tactical Retreats 18 | . . . . . 3 . . 1 6 . . 8 Traps | -11 -10 -10 -10 -9 -8 -7 -7 -6 -6 -6 -6 -6 ------- Run | Yrd Mat Min Exi Min Mat Fac DSF Fac Ext Cet Arc Hub Traps Triggered 6 | . 3 . . . . . 1 . 2 . . . Indirectly . | . . . . . . . . . . . . . Trap Hack Attempts . | . . . . . . . . . . . . . Triggered . | . . . . . . . . . . . . . Disarmed . | . . . . . . . . . . . . . Reprogrammed . | . . . . . . . . . . . . . Reused . | . . . . . . . . . . . . . Traps Extracted . | . . . . . . . . . . . . . Installed . | . . . . . . . . . . . . . Triggered . | . . . . . . . . . . . . . Machines | -11 -10 -10 -10 -9 -8 -7 -7 -6 -6 -6 -6 -6 ---------- Run | Yrd Mat Min Exi Min Mat Fac DSF Fac Ext Cet Arc Hub Machines Disabled 38 | . . . . 11 . . . 5 5 . 2 15 Max in Single Turn 11 | . . . . 11 . . . 4 1 . 1 4 Network Hub 2 | . . . . . . . . . . . . 2 Machines Repaired . | . . . . . . . . . . . . . Machines Dismantled . | . . . . . . . . . . . . . Machines Sabotaged . | . . . . . . . . . . . . . Overloaded Fab Kills . | . . . . . . . . . . . . . Hacking | -11 -10 -10 -10 -9 -8 -7 -7 -6 -6 -6 -6 -6 --------- Run | Yrd Mat Min Exi Min Mat Fac DSF Fac Ext Cet Arc Hub Machines Accessed 30 | . 2 . 2 . 3 2 . 3 8 3 . 7 Terminals 26 | . 2 . . . 3 1 . 2 8 3 . 7 Fabricators . | . . . . . . . . . . . . . Repair Stations . | . . . . . . . . . . . . . Recycling Units . | . . . . . . . . . . . . . Scanalyzers 2 | . . . . . . 1 . 1 . . . . Garrison Access . | . . . . . . . . . . . . . Total Hacks 71 | . 5 . 2 . 9 5 . 6 16 11 . 17 Successful 38 | . 3 . 2 . 4 4 . 4 10 2 . 9 Failed 33 | . 2 . . . 5 1 . 2 6 9 . 8 Catastrophic 4 | . . . . . . . . . . 3 . 1 Database Lockouts . | . . . . . . . . . . . . . Manual 36 | . 4 . 1 . 8 . . 1 5 2 2 13 Terminals 64 | . 5 . . . 9 1 . 5 16 11 . 17 Fabricators . | . . . . . . . . . . . . . Repair Stations . | . . . . . . . . . . . . . Recycling Units . | . . . . . . . . . . . . . Scanalyzers 5 | . . . . . . 4 . 1 . . . . Garrison Access . | . . . . . . . . . . . . . Terminal Hacks 22 | . 1 . 2 . 1 1 . 4 6 2 . 5 Record 3 | . . . 1 . . . . 1 . 1 . . Part Schematic 1 | . . . . . . . . . 1 . . . Robot Analysis 1 | . 1 . . . . . . . . . . . Prototype ID Bank 3 | . . . . . . . . 1 . . . 2 Open Door 5 | . . . . . . . . . 4 1 . . Open DSF 2 | . . . . . . 1 . 1 . . . . Branch Access Points 2 | . . . . . 1 . . 1 . . . . Unreport Threat 1 | . . . . . . . . . . . . 1 Locate Traps 1 | . . . . . . . . . 1 . . . Dispatch Records 1 | . . . . . . . . . . . . 1 Hauler Manifests 1 | . . . . . . . . . . . . 1 Derelict Proto ID Bank 1 | . . . 1 . . . . . . . . . Fabricator Hacks . | . . . . . . . . . . . . . Repair Station Hacks . | . . . . . . . . . . . . . Recycling Unit Hacks . | . . . . . . . . . . . . . Scanalyzer 3 | . . . . . . 3 . . . . . . Insert Component 1 | . . . . . . 1 . . . . . . Analyze 2 | . . . . . . 2 . . . . . . Garrison Access Hacks . | . . . . . . . . . . . . . Unauthorized Hacks 13 | . 2 . . . 3 . . . 4 . . 4 Terminals 13 | . 2 . . . 3 . . . 4 . . 4 Botnet 13 | . 2 . . . 3 . . . 4 . . 4 Fabricators . | . . . . . . . . . . . . . Repair Stations . | . . . . . . . . . . . . . Recycling Units . | . . . . . . . . . . . . . Scanalyzers . | . . . . . . . . . . . . . Garrison Access . | . . . . . . . . . . . . . Data Cores Recovered 3 | . . . . . . . . 1 1 . . 1 Used 1 | . . . . . . . . . 1 . . . Hacking Detections 20 | . 2 . . . 2 2 . 1 5 2 . 6 Full Trace Events 2 | . 1 . . . . . . . 1 . . . Feedback Events . | . . . . . . . . . . . . . Feedback Blocked . | . . . . . . . . . . . . . Robot Schematics Acquired . | . . . . . . . . . . . . . Robots Built . | . . . . . . . . . . . . . Authchips . | . . . . . . . . . . . . . Time . | . . . . . . . . . . . . . Total Robot Build Rating . | . . . . . . . . . . . . . Part Schematics Acquired 2 | . . . . . . 1 . . 1 . . . Parts Built . | . . . . . . . . . . . . . Authchips . | . . . . . . . . . . . . . Time . | . . . . . . . . . . . . . Total Part Build Rating . | . . . . . . . . . . . . . Parts Repaired . | . . . . . . . . . . . . . Time . | . . . . . . . . . . . . . Parts Recycled . | . . . . . . . . . . . . . Recycled Matter . | . . . . . . . . . . . . . Retrieved Matter . | . . . . . . . . . . . . . Retrieved Components . | . . . . . . . . . . . . . Parts Scanalyzed 1 | . . . . . . 1 . . . . . . Part Schematics Acquired 1 | . . . . . . 1 . . . . . . Parts Damaged . | . . . . . . . . . . . . . Bothacking | -11 -10 -10 -10 -9 -8 -7 -7 -6 -6 -6 -6 -6 ------------ Run | Yrd Mat Min Exi Min Mat Fac DSF Fac Ext Cet Arc Hub Used RIF Installer . | . . . . . . . . . . . . . Robots Hacked . | . . . . . . . . . . . . . Non-combat . | . . . . . . . . . . . . . Combat . | . . . . . . . . . . . . . Robot Hacks Applied . | . . . . . . . . . . . . . Relay Couplers Released . | . . . . . . . . . . . . . Fabnet Peak Effective % . | . . . . . . . . . . . . . Robots Rewired 11 | . . . . . . . . . 11 . . . Allies Hacked . | . . . . . . . . . . . . . Hacks Repelled . | . . . . . . . . . . . . . Allies | -11 -10 -10 -10 -9 -8 -7 -7 -6 -6 -6 -6 -6 -------- Run | Yrd Mat Min Exi Min Mat Fac DSF Fac Ext Cet Arc Hub Total Allies 19 | . . . . . . . . . 14 5 . . Largest Group 11 | . . . . . . . . . 11 8 5 3 Highest-Rated Group 709 | . . . . . . . . . 448 709 543 288 Highest-Rated Ally 159 | . . . . . . . . . 159 159 159 96 Total Orders . | . . . . . . . . . . . . . Ally Attacks 295 | . . . . . . . . . 191 36 13 55 Total Damage 7581 | . . . . . . . . . 3504 1215 535 2327 Kills 39 | . . . . . . . . . 18 8 3 10 Allies Corrupted . | . . . . . . . . . . . . . Allies Melted . | . . . . . . . . . . . . . Intel | -11 -10 -10 -10 -9 -8 -7 -7 -6 -6 -6 -6 -6 ------- Run | Yrd Mat Min Exi Min Mat Fac DSF Fac Ext Cet Arc Hub Robot Analysis Total 1 | . 1 . . . . . . . . . . . Derelict Logs Recovered . | . . . . . . . . . . . . . Drone Launches . | . . . . . . . . . . . . . Drone Recoveries . | . . . . . . . . . . . . . Exploration | -11 -10 -10 -10 -9 -8 -7 -7 -6 -6 -6 -6 -6 ------------- Run | Yrd Mat Min Exi Min Mat Fac DSF Fac Ext Cet Arc Hub Turns Passed 6837 | 65 513 331 329 466 779 151 243 377 1008 434 223 1918 Spaces Moved 3777 | 52 259 183 205 260 182 113 179 329 645 288 134 948 Core 36 | 33 . . . . . . . . . . . 3 Treads 1050 | 19 235 183 205 260 148 . . . . . . . Legs 1699 | . 24 . . . . . . . 308 288 134 945 Wheels . | . . . . . . . . . . . . . Hover 992 | . . . . . 34 113 179 329 337 . . . Flight . | . . . . . . . . . . . . . Fastest Speed 46 | 50 160 160 160 160 320 124 124 110 46 120 120 120 Average Speed 141 | 97 162 160 160 160 413 124 124 110 101 120 120 124 Slowest Speed 820 | 160 190 160 160 160 820 124 124 117 260 190 120 700 Overloaded Moves . | . . . . . . . . . . . . . Propulsion Burnouts . | . . . . . . . . . . . . . Robots Hopped . | . . . . . . . . . . . . . Cave-ins Triggered . | . . . . . . . . . . . . . Exploration Rate (%) 48 | 3 42 33 58 56 20 3 89 13 69 83 87 73 Regions Visited 12 Branch Regions 7 Pre-discovered Areas 1 | . . . 1 . . . . . . . . . Known Exits Taken 2 | . . . . . . 1 . 1 . . . . Unknown Exits Taken 9 | 1 1 1 1 1 1 . . . 1 1 1 . Scrap Searched 3 | . . 2 . 1 . . . . . . . . Spaces Dug 171 | . . . . . . . . . . . . 171 Terrain Destroyed 474 | . . . . 42 12 . 2 40 37 48 9 284 Melee . | . . . . . . . . . . . . . Projectile 145 | . . . . . 12 . 2 4 15 5 9 98 AOE 329 | . . . . 42 . . . 36 22 43 . 186 Terrain Rammed . | . . . . . . . . . . . . . Walls Destroyed . | . . . . . . . . . . . . . Machines Disabled . | . . . . . . . . . . . . . Actions | -11 -10 -10 -10 -9 -8 -7 -7 -6 -6 -6 -6 -6 --------- Run | Yrd Mat Min Exi Min Mat Fac DSF Fac Ext Cet Arc Hub Total 4755 | 65 302 210 207 292 208 122 204 346 887 349 166 1397 Wait 280 | . . 13 . 5 . . 1 1 39 5 11 205 Move 3765 | 51 258 182 204 259 181 112 178 328 644 287 133 948 Hop . | . . . . . . . . . . . . . Pick Up 120 | 8 7 7 1 4 10 1 11 7 17 14 1 32 Fast Attach 22 | 2 . . . . 1 . 1 . 2 4 1 11 Attach 63 | 4 2 1 . . 5 2 . 4 12 3 . 30 Detach 4 | . . . . . 3 . . . . . . 1 Swap 64 | . 7 1 . 4 2 5 3 1 13 10 4 14 Drop 77 | . 2 . 2 8 4 2 10 5 13 11 1 19 Fire 252 | . 25 6 . 12 . . . . 48 15 15 131 Melee 13 | . . . . . . . . . 13 . . . Ram 2 | . . . . . . . . . 2 . . . Kick 6 | . . . . . . . . . . . . 6 Crush 3 | . 1 . . . 2 . . . . . . . Escape Stasis 16 | . . . . . . . . . 16 . . . Rewire 68 | . . . . . . . . . 68 . . . Trap . | . . . . . . . . . . . . . Miscellaneous . | . . . . . . . . . . . . . Route ------- -11/Scrapyard -10/Materials (discovered 2 exits: [*Mat] / [*Min]) -10/Mines (discovered 3 exits: [*Mat x2] / *Exi) -10/Exiles -9/Mines -8/Materials -7/Factory -7/DSF -6/Factory (discovered 4 exits: Low x2 / *Ext x2) -6/Extension (discovered 3 exits: [*Fac x2] / *Cet) -6/Cetus (discovered 2 exits: [*Fac] / *Arc) -6/Archives (discovered 3 exits: [*Fac] / *Hub x2) -6/Hub_04(d) (discovered 4 exits: [*Fac x4]) History --------- Turn | Location | Event 12 | -11/Scrapyard | Discovered new exit (range 16) 66 | -11/Scrapyard | Entered Materials 237 | -10/Materials | Discovered new exit (range 16) 312 | -10/Materials | Build established: Mutant 523 | -10/Materials | Discovered new exit (range 11) 579 | -10/Materials | Entered Mines 664 | -10/Mines | Discovered new exit (range 7) 671 | -10/Mines | Received a Rocket Launcher from a helpful Derelict 711 | -10/Mines | Discovered new exit (range 8) 857 | -10/Mines | Deemed a non-threat by the Exiles lab entrance 857 | -10/Mines | Discovered new exit (range 5) 910 | -10/Mines | Entered Exiles 947 | -10/Exiles | Met 8R-AWN 976 | -10/Exiles | Met EX-HEX 1024 | -10/Exiles | Met EX-BIN 1043 | -10/Exiles | Aligned with FarCom system 1045 | -10/Exiles | Given EX-Vault access code 1082 | -10/Exiles | Opened EX-Vault 1091 | -10/Exiles | Found AWS/Autocannon 1125 | -10/Exiles | Warned to stay clear of 0b10 Research branches 1170 | -10/Exiles | Met EX-DEC 1176 | -10/Exiles | Learned location of Zion (-6) 1226 | -10/Exiles | Discovered new exit (range 10) 1239 | -10/Exiles | Left Exiles lab with AWS/Autocannon 1239 | -10/Exiles | Entered Mines 1241 | -9/Mines | Met a Derelict bent on vengeance 1259 | -9/Mines | Assembled infested the area 1301 | -9/Mines | Core integrity fell below 50% 1503 | -9/Mines | Discovered new exit (range 10) 1705 | -9/Mines | Entered Materials 1705 | -8/Materials | Evolved 4 slots: Propulsion x1, Utility x2, Weapon x1 2054 | -8/Materials | Build established: Skirmisher 2430 | -8/Materials | Discovered new exit (range 15) 2484 | -8/Materials | Entered Factory 2484 | -7/Factory | Evolved 2 slots: Propulsion x2 2634 | -7/Factory | Identified exit to DSF 2635 | -7/Factory | Entered DSF 2673 | -7/DSF | Additional patrols routed to DSF 2720 | -7/DSF | Discovered new exit (range 14) 2769 | -7/DSF | Sterilization system engaged 2787 | -7/DSF | Build established: Scavenger-Skirmisher 2789 | -7/DSF | Ambient heat levels rising (+10) 2804 | -7/DSF | Ambient heat levels rising (+10) 2819 | -7/DSF | Ambient heat levels rising (+10) 2834 | -7/DSF | Ambient heat levels rising (+10) 2849 | -7/DSF | Ambient heat levels rising (+10) 2864 | -7/DSF | Ambient heat levels rising (+10) 2878 | -7/DSF | Entered Factory 2878 | -6/Factory | Evolved 2 slots: Propulsion x2 3041 | -6/Factory | Identified exit to Lower Caves 3041 | -6/Factory | Identified exit to Extension 3228 | -6/Factory | First assault squad dispatched 3255 | -6/Factory | Entered Extension 3399 | -6/Extension | AWS/Autocannon suddenly broke down 3425 | -6/Extension | Rescued a captive Derelict 3432 | -6/Extension | Rescued a captive Derelict 3486 | -6/Extension | Rescued A7 3605 | -6/Extension | First assault squad dispatched 3615 | -6/Extension | Lost 3 allies 3808 | -6/Extension | Disrupted transfer network 3865 | -6/Extension | Lost 5 allies 4003 | -6/Extension | Spotted B-75 Beast 4037 | -6/Extension | Spotted B-75 Beast 4045 | -6/Extension | Allies destroyed B-75 Beast 4065 | -6/Extension | Allies destroyed B-75 Beast 4138 | -6/Extension | Discovered new exit (range 3) 4245 | -6/Extension | Discovered new exit (range 16) 4246 | -6/Extension | Discovered new exit (range 15) 4263 | -6/Extension | Entered Cetus 4263 | -6/Cetus | Accompanied by 3 allies (A7) 4268 | -6/Cetus | Acquired a Cetus Manufacturing Module code from A7 4284 | -6/Cetus | Spotted Cetus Guard 4284 | -6/Cetus | Spotted Cetus Guard 4286 | -6/Cetus | Spotted Cetus Guard 4286 | -6/Cetus | Allies destroyed Cetus Guard 4291 | -6/Cetus | Allies destroyed Cetus Guard 4296 | -6/Cetus | Allies destroyed Cetus Guard 4297 | -6/Cetus | Spotted Cetus Guard 4310 | -6/Cetus | Allies destroyed Cetus Guard 4335 | -6/Cetus | Lost 3 parts (2n1w) 4361 | -6/Cetus | Build established: Scavenger-Tank 4399 | -6/Cetus | Started Cetus Manufacturing Module 4407 | -6/Cetus | Escorted A7 to Cetus Mainframe 4424 | -6/Cetus | Manufactured an Enhanced Grunt 4449 | -6/Cetus | Manufactured an Enhanced Grunt 4474 | -6/Cetus | Manufactured an Enhanced Grunt 4499 | -6/Cetus | Manufactured an Enhanced Grunt 4521 | -6/Cetus | Discovered new exit (range 15) 4524 | -6/Cetus | Manufactured an Enhanced Grunt 4544 | -6/Cetus | Spotted Cetus Guard 4544 | -6/Cetus | Spotted Cetus Guard 4547 | -6/Cetus | Spotted Cetus Guard 4547 | -6/Cetus | Spotted Cetus Guard 4555 | -6/Cetus | Destroyed Cetus Guard 4557 | -6/Cetus | Allies destroyed Cetus Guard 4560 | -6/Cetus | Allies destroyed Cetus Guard 4564 | -6/Cetus | Allies destroyed Cetus Guard 4593 | -6/Cetus | Lost 3 allies 4595 | -6/Cetus | Discovered new exit (range 16) 4601 | -6/Cetus | Met Revision 17 4662 | -6/Cetus | Found Prototype Device 4697 | -6/Cetus | Entered Archives 4697 | -6/Archives | Accompanied by 5 allies (A7) 4702 | -6/Archives | Received a hacking code to weaken MAIN.C 4736 | -6/Archives | Unable to access archive contents 4764 | -6/Archives | Discovered new exit (range 15) 4785 | -6/Archives | Discovered new exit (range 16) 4791 | -6/Archives | Identified Exp. Thermal Shield 4817 | -6/Archives | Build established: Scavenger-Mutant 4845 | -6/Archives | Discovered new exit (range 15) 4920 | -6/Archives | Entered Hub_04(d) 4920 | -6/Hub_04(d) | Accompanied by 3 allies 4920 | -6/Hub_04(d) | Discovered new exit (range 10) 4931 | -6/Hub_04(d) | Discovered new exit (range 13) 4987 | -6/Hub_04(d) | Lost 5 parts (2p1n2u) 5002 | -6/Hub_04(d) | Discovered new exit (range 15) 5031 | -6/Hub_04(d) | Spotted B-75 Beast 5218 | -6/Hub_04(d) | Garrison activated, responded to threat 5254 | -6/Hub_04(d) | Destroyed B-75 Beast 5295 | -6/Hub_04(d) | Disrupted transfer network 5386 | -6/Hub_04(d) | Lost 4 parts (1p1u2w) 5441 | -6/Hub_04(d) | Discovered new exit (range 9) 5620 | -6/Hub_04(d) | Build established: Scavenger-Tank 5665 | -6/Hub_04(d) | Garrison activated, responded to threat 5780 | -6/Hub_04(d) | Garrison activated, responded to threat 5784 | -6/Hub_04(d) | Core integrity fell below 50% 5890 | -6/Hub_04(d) | Lost 4 parts (3n1u) 6041 | -6/Hub_04(d) | Core integrity fell below 20% 6046 | -6/Hub_04(d) | Lost 10 parts (1p4n1u4w) 6708 | -6/Hub_04(d) | Network Hub disabled 6769 | -6/Hub_04(d) | Spotted Lightning 6790 | -6/Hub_04(d) | Network Hub disabled 6791 | -6/Hub_04(d) | System corruption reached 10% 6797 | -6/Hub_04(d) | Spotted Lightning 6815 | -6/Hub_04(d) | Spotted Lightning 6816 | -6/Hub_04(d) | Spotted Lightning 6821 | -6/Hub_04(d) | Spotted Lightning 6838 | -6/Hub_04(d) | Destroyed by Lightning with EMDS Last Messages --------------- Penetrated by EMDS Slug. Lgt. Fission Core destroyed. Penetrated by EMDS Slug. System corrupted: Substantial component data lost. Penetrated by EMDS Slug. Lrn. Missile Launcher destroyed. Penetrated by EMDS Slug. Identified Imp. Targeting Computer. Identified Gui. EMP Blaster. Dropped Gui. EMP Blaster. Penetrated by EMDS Slug. Imp. Carbon-fiber Leg destroyed. System corrupted: Antimatter Cannon jammed. Penetrated by EMDS Slug. Flexi-carbon Leg destroyed. Penetrated by EMDS Slug. EMDS Slug penetrates Wall. Penetrated by EMDS Slug. Centrium Medium Armor Plating destroyed. Penetrated by EMDS Slug. Map ----- +----------------------------------------------------+ | ????????????????????????????????????????????????# | | ????????????????????????????????????????????????# | | ????????????????????????????????????????????????# | | ????????????????????????????????????????????????# | | ????????????????????????????????????????????????# | | ????????????????????????????????????????????????# | | ????????????????????????????????????????????????# | | ????????????????????????????????????????????????# | | ????????????????????????????????????????????????# | | ????????????????????????????????????????????????# | | ????????????????????????????????????????????????# | | ??#################?????????????????????????????# | | ??# ##??????????????????###???????# | | ??# #??#####?????????## #####???#^ | | ??# """""""""""" #??# #????????? ??# | | ??# " ! " #??# " #?#?????? ??# | | ??# " % " #### # #?????? ;;""""""""### | | ??# " " # ; " #????? ; ## | | ??# " """"";; #????### ## | | ??# " !"% ; ###### "# | | ??# " | ! ;;;;;;; "## | | ??# " [; # # ;; i " | | ??# " " # ;; % h " [ | | ??# " " # !##;#;; h "## | | ??# " [ " #=!! ; h! ##% | | ??# " " # % [ @ ; ##" | | ??# """"""" ##;##;;; ; % #"" | | ??# " # ; ! [ ##" | | ??# # # ; !! h """"""###" | | ??######## ##### # ; ! h ; ##" | | ?????????###????#" #;;;;;;;;;#; " ##" | | ????????????????#T !# ##" " ##" | | ????????????????#"" # ##" " ##" | | ????????????????#" ! ### ##" | | ????????????????#" ### """########" | | ????????????????# [ # /p #T#####" | | ????????????????## ;;;#### *# / | | ?????????????????### #???#! # ###### | | ???????????????????##????" # ##???# | | ?????????????????????????# # T#???# | | ?????????????????????????# # ##???# | | ?????????????????????????########## #????# | | ?????????????????????????????###### #????# | | ?????????????????????????????# ! # #????# | | ?????????????????????????????# # #????# | | ?????????????????????????????# "" # #????## | | ?????????????????????????????# "" + #????## | | ?????????????????????????????# T" # #????# | | ?????????????????????????????# "" # ###### | | ?????????????????????????????# "" + ## | +----------------------------------------------------+ Best States ------------- Heat Dissipation 56 Energy Generation 25 Energy Capacity 350 Matter Stores 300 Matter Capacity 300 Sight Range 16 Terrain Scan Density 10 Jamming Range 12 Armor Coverage 450 Resistance: KI 20 Resistance: TH 30 Evasion (%) 55 Targeting Accuracy 6 Recoil Reduction 2 Offensive Hacking 20 Item Schematics ----------------- Cmb. Airjet | -7/Factory | Scanalyzed Adv. Shield Generator | -6/Extension | Hacked Robot Schematics ------------------ None Fabricated ------------ Nothing Alien Tech Used ----------------- None Achievements -------------- Main Advantage Project G-00 Revising The Future Challenges ------------ None Game ------ Seed ThermicArchitectWings Manual? 0 Play Time 01:22:58 Cumulative 69.1 hours Start 2024.08.17 @ 18:07:26 End 2024.08.17 @ 20:18:41 Sessions 1 Manual Loads 0 Difficulty Rogue Special Mode None Game No. 91 Rogue 91 Adventurer 0 Explorer 0 Win Type - Total 2 Types 2/0/0/0/0/0/0/0/0 Lore% 35 Gallery% 52 Achievement% 40 Wizard Run 0 Options --------- Layout 0 ASCII 0 Keyboard 0 Movement Mouse Keybinds 0 Fullscreen 2 Font 18/SmallcapsGlow Map View 76x50 Zoom Use 0% Tactical HUD 0 Map Filters NONE Filters NONE Steam 1 RUN: 68c9a124-4781-489a-b820-9ce70db17ffe